fUSD/lending_fUSD_20251223
["ID","MTS","AMOUNT","RATE_DAILY","PERIOD"]
[399567745,1766499031696,-500.0,0.00012499,2]
[399567747,1766499031706,-500.0,0.00012499,2]
[399567748,1766499031715,-500.0,0.00012499,2]
[399567749,1766499031724,-500.0,0.00012499,2]
[399567750,1766499031733,-500.0,0.00012499,2]
[399567752,1766499031742,-500.0,0.00012499,2]
[399567754,1766499031751,-500.0,0.00012499,2]
[399567756,1766499031761,-500.0,0.00012499,2]
[399567758,1766499031770,-600.0,0.00012499,2]
[399567759,1766499031779,-401.9853,0.000125,2]
[399567762,1766499031789,-52028.4266234,0.000125,2]
[399567763,1766499031801,-68913.49118608,0.000125,2]
[399567764,1766499031811,-32704.8486936,0.000125,2]
[399567765,1766499031823,-1422.63899574,0.000125,2]
[399567766,1766499031840,-456.39205502,0.000125,2]
[399567767,1766499031858,-4201.65523545,0.000125,2]
[399567769,1766499037583,-479.61905762,0.000125,2]
[399567770,1766499037755,-19845.24128045,0.000125,2]
[399567771,1766499037766,-5778.20325848,0.000125,2]
[399567772,1766499037778,-10000.0,0.000125,2]
[399567781,1766499039991,-471.375014,0.000125,2]
[399567782,1766499040002,-356.68236483,0.000125,2]
[399567783,1766499040013,-644.38,0.000125,2]
[399567784,1766499040028,-763.45759774,0.000125,2]
[399567785,1766499040057,-6893.36296544,0.000125,2]
[399567786,1766499040067,-1011.10205987,0.000125,2]
[399567787,1766499040079,-523.34287504,0.000125,2]
[399567788,1766499040090,-427.39638274,0.000125,2]
[399567789,1766499040101,-4568.66833625,0.000125,2]
[399567790,1766499040110,-152.76,0.00012828,2]
[399567791,1766499040120,-734.39,0.00012939,2]
[399567792,1766499040129,-500.0,0.00013,2]
[399567793,1766499040139,-1005.37136806,0.00013025,2]
[399567794,1766499040150,-200.0,0.00013072,2]
[399567795,1766499040160,-1000.0,0.00013189,2]
[399567796,1766499040171,-3240.0,0.00013227,2]
[399567797,1766499040180,-800.21,0.0001327,2]
[399567798,1766499040190,-1686.65,0.00013407,2]
[399567799,1766499040199,-175.19,0.00013444,2]
[399567800,1766499040208,-250.0,0.00013574,2]
[399567801,1766499040218,-150.0,0.00013618,2]
[399567802,1766499040227,-500.0,0.00013698,2]
[399567803,1766499040237,-500.0,0.00013698,2]
[399567804,1766499040246,-500.0,0.00013698,2]
[399567805,1766499040255,-166.66,0.00013699,2]
[399567806,1766499040265,-577.6,0.00013699,2]
[399567807,1766499040274,-1680.0,0.00013739,2]
[399567808,1766499040283,-171.48,0.00013739,2]
[399567809,1766499040293,-166.66,0.00013766,2]
[399567810,1766499040302,-166.66,0.00013836,2]
[399567811,1766499040321,-166.66,0.00013973,2]
[399567812,1766499040332,-200.0,0.00014084,2]
[399567813,1766499040342,-499.9963095,0.00014103,2]
[399567814,1766499040351,-166.66,0.0001411,2]
[399567815,1766499040361,-6530.5096539,0.00014124,2]
[399567816,1766499040372,-322.6107,0.00014203,2]
[399567817,1766499040382,-574.12855637,0.00014203,2]
[399567818,1766499040393,-9552.16786547,0.00014203,2]
[399567819,1766499040404,-500.0,0.00014203,2]
[399567820,1766499040415,-500.0,0.00014203,2]
[399567821,1766499040427,-250.0,0.00014203,2]
[399567822,1766499040438,-500.0,0.00014203,2]
[399567823,1766499040449,-250.0,0.00014203,2]
[399567824,1766499040464,-500.0,0.00014203,2]
[399567825,1766499040474,-250.0,0.00014203,2]
[399567826,1766499040486,-250.0,0.00014203,2]
[399567827,1766499040501,-500.0,0.00014203,2]
[399567828,1766499040511,-250.0,0.00014203,2]
[399567829,1766499040521,-500.0,0.00014203,2]
[399567830,1766499040530,-220.0,0.00014203,2]
[399567831,1766499040540,-500.0,0.00014203,2]
[399567832,1766499040550,-151.0,0.00014203,2]
[399567833,1766499040560,-220.7490863,0.00014203,2]
[399567834,1766499040569,-500.0,0.00014203,2]
[399567835,1766499040579,-500.0,0.00014203,2]
[399567836,1766499040588,-500.0,0.00014203,2]
[399567837,1766499040598,-500.0,0.00014203,2]
[399567838,1766499040608,-500.0,0.00014203,2]
[399567839,1766499040617,-500.0,0.00014203,2]
[399567840,1766499040627,-1108.0,0.00014203,2]
[399567841,1766499040636,-500.0,0.00014203,2]
[399567842,1766499040645,-500.0,0.00014203,2]
[399567843,1766499040655,-500.0,0.00014203,2]
[399567844,1766499040664,-500.0,0.00014203,2]
[399567845,1766499040673,-500.0,0.00014203,2]
[399567846,1766499040683,-500.0,0.00014203,2]
[399567847,1766499040693,-500.0,0.00014203,2]
[399567848,1766499040702,-500.0,0.00014203,2]
[399567849,1766499040712,-500.0,0.00014203,2]
[399567850,1766499040721,-500.0,0.00014203,2]
[399567851,1766499040730,-500.0,0.00014203,2]
[399567852,1766499040743,-500.0,0.00014203,2]
[399567853,1766499040752,-250.0,0.00014203,2]
[399567854,1766499040762,-500.0,0.00014203,2]
[399567855,1766499040772,-500.0,0.00014203,2]
[399567856,1766499040781,-250.0,0.00014203,2]
[399567857,1766499040791,-500.0,0.00014203,2]
[399567858,1766499040801,-500.0,0.00014203,2]
[399567859,1766499040810,-250.0,0.00014203,2]
[399567860,1766499040820,-283.18901002,0.00014203,2]
[399567861,1766499040830,-250.0,0.00014203,2]
[399567862,1766499040842,-186.66093114,0.00014203,2]
[399567863,1766499040851,-250.0,0.00014203,2]
[399567864,1766499040860,-250.0,0.00014203,2]
[399567865,1766499040871,-250.0,0.00014203,2]
[399567866,1766499040881,-250.0,0.00014203,2]
[399567867,1766499040890,-250.0,0.00014203,2]
[399567868,1766499040900,-250.0,0.00014203,2]
[399567869,1766499040910,-260.99352058,0.00014203,2]
[399567870,1766499040920,-1500.0,0.00014203,2]
[399567871,1766499040929,-250.0,0.00014203,2]
[399567872,1766499040939,-1500.0,0.00014203,2]
[399567873,1766499040949,-250.0,0.00014203,2]
[399567874,1766499040959,-1500.0,0.00014203,2]
[399567875,1766499040969,-250.0,0.00014203,2]
[399567876,1766499040978,-1500.0,0.00014203,2]
[399567877,1766499040989,-500.0,0.00014203,2]
[399567878,1766499040998,-500.0,0.00014203,2]
[399567879,1766499041008,-500.0,0.00014203,2]
[399567880,1766499041017,-500.0,0.00014203,2]
[399567881,1766499041027,-500.0,0.00014203,2]
[399567882,1766499041036,-300.16934291,0.00014203,2]
[399567883,1766499041046,-578.20924308,0.00014203,2]
[399567884,1766499041055,-940.72,0.00014203,2]
[399567885,1766499041065,-166.66,0.0001422,2]
[399567886,1766499041075,-166.66,0.00014247,2]
[399567887,1766499041084,-9905.5980765,0.00014258,2]
[399567888,1766499041094,-10272.10520533,0.00014313,2]
[399567889,1766499041104,-10652.17309792,0.00014368,2]
[399567890,1766499041114,-166.66,0.00014384,2]
[399567891,1766499041124,-5213.85341733,0.00014404,2]
[399567892,1766499041134,-11046.30350255,0.00014423,2]
[399567893,1766499041144,-940.72,0.00014477,2]
[399567894,1766499041154,-1103.80484667,0.00014478,2]
[399567895,1766499041163,-499.99630948,0.00014503,2]
[399567896,1766499041173,-150.99,0.00014504,2]
[399567897,1766499041183,-733.92,0.00014504,2]
[399567898,1766499041192,-9999.99,0.00014504,2]
[399567899,1766499041202,-1815.40969032,0.00014504,2]
[399567900,1766499041215,-396.71618048,0.00014504,2]
[399567919,1766499042875,-697.7541292,0.00014504,2]
[399567920,1766499042884,-499.99,0.00014504,2]
[399567921,1766499042894,-150.99,0.00014504,2]
[399567922,1766499042904,-9999.99,0.00014504,2]
[399567923,1766499042915,-3806.81,0.00014504,2]
[399567924,1766499042924,-166.66,0.00014675,2]
[399567927,1766499043175,-5213.85341724,0.00014681,2]
[399567928,1766499043185,-500.0,0.0001473,2]
[399567929,1766499043195,-595.37131296,0.00014751,2]
[399567930,1766499043204,-940.72,0.00014751,2]
[399567931,1766499043213,-1000.0,0.00014837,2]
[399567932,1766499043223,-499.99630948,0.00014902,2]
[399567933,1766499043234,-5213.85341724,0.00014959,2]
[399567934,1766499043243,-500.0,0.00015,3]
[399567935,1766499043254,-1000.0,0.00015,2]
[399567936,1766499043264,-940.72,0.00015025,2]
[399567937,1766499043274,-2000.0,0.00015068,2]
[399567938,1766499043283,-2000.0,0.00015068,2]
[399567939,1766499043292,-1000.0,0.0001509,2]
[399567940,1766499043302,-1000.0,0.0001509,2]
[399567941,1766499043311,-1000.0,0.0001509,2]
[399567942,1766499043321,-1000.0,0.0001509,2]
[399567943,1766499043330,-1000.0,0.0001509,2]
[399567944,1766499043340,-1000.0,0.0001509,2]
[399567945,1766499043349,-1000.0,0.0001509,2]
[399567946,1766499043358,-1000.0,0.0001509,2]
[399567947,1766499043368,-1000.0,0.0001509,2]
[399567948,1766499043377,-1000.0,0.0001509,2]
[399567949,1766499043387,-551.455,0.0001509,2]
[399567950,1766499043396,-227.0,0.00015113,2]
[399567951,1766499043406,-151.0,0.00015116,2]
[399567952,1766499043415,-175.19,0.00015125,2]
[399567953,1766499043424,-166.66,0.00015129,2]
[399567954,1766499043434,-151.0,0.00015131,2]
[399567955,1766499043443,-5213.85341724,0.00015236,2]
[399567956,1766499043452,-617.40005154,0.00015299,2]
[399567957,1766499043462,-940.72,0.00015299,2]
[399567958,1766499043471,-499.99630948,0.00015302,2]
[399567959,1766499043481,-4091.02767549,0.000154,2]
[399567960,1766499043491,-2351.57518486,0.00015505,2]
[399567961,1766499043500,-5213.85341724,0.00015513,2]
[399567962,1766499043510,-334.5472959,0.00015572,2]
[399567963,1766499043519,-151.0,0.00015572,2]
[399567964,1766499043528,-1108.0,0.00015572,2]
[399567965,1766499043538,-940.72,0.00015573,2]
[399567966,1766499043547,-166.66,0.00015584,2]
[399567967,1766499043556,-200.0,0.00015693,2]
[399567968,1766499043566,-200.0,0.00015694,2]
[399567969,1766499043576,-2000.0,0.00015694,2]
[399567970,1766499043587,-500.0,0.00015694,2]
[399567971,1766499043596,-200.0,0.00015694,2]
[399567972,1766499043606,-200.0,0.00015694,2]
[399567973,1766499043615,-200.0,0.00015694,2]
[399567974,1766499043624,-499.99630948,0.00015701,2]
[399567975,1766499043634,-520.67797137,0.00015749,2]
[399567976,1766499043646,-6009.83168253,0.00015749,2]
[399567977,1766499043656,-201.98303125,0.00015783,2]
[399567978,1766499043665,-5213.85341724,0.00015791,2]
[399567979,1766499043675,-163.69,0.000158,2]
[399567980,1766499043685,-640.24385345,0.00015847,2]
[399567981,1766499043695,-940.72,0.00015847,2]
[399567982,1766499043705,-437.32748194,0.000159,2]
[399567983,1766499043716,-4091.02767549,0.000159,2]
[399567984,1766499043726,-1564.1301333,0.000159,2]
[399567985,1766499043737,-1104.36202648,0.0001599,2]
[399567986,1766499043746,-1119.87458419,0.00015999,5]
[399567987,1766499043756,-500.0,0.00015999,2]
[399567988,1766499043766,-500.0,0.00015999,2]
[399567989,1766499043775,-500.0,0.00015999,2]
[399567990,1766499043785,-500.0,0.00015999,2]
[399567991,1766499043794,-573.70321081,0.00015999,2]
[399567992,1766499043803,-4683.0,0.00016,2]
[399567993,1766499043813,-5608.01738332,0.00016,2]
[399567994,1766499043824,-345.69,0.00016,2]
[399567995,1766499043836,-5332.28665402,0.00016,2]
[399567996,1766499043850,-697.1563882,0.00016,2]
[399568019,1766499045675,-436.86018137,0.00016,2]
[399568020,1766499045734,-13716.2766494,0.00016,2]
[399568045,1766500231707,-500.0,0.00014266,2]
[399568046,1766500231723,-150.0,0.00014266,2]
[399568047,1766500231734,-129.26125715,0.00014266,2]
[399568048,1766500231746,-1070.73874285,0.00014266,2]
[399568049,1766500231758,-1129.68743,0.00014267,2]
[399568050,1766500231781,-870.31257,0.00014267,2]
[399568051,1766500231791,-779.68743,0.00014267,2]
[399568052,1766500231819,-811.64281846,0.00014267,2]
[399568053,1766500231831,-408.66975154,0.00014267,2]
[399568054,1766500231842,-468.69024846,0.00014267,2]
[399568055,1766500231877,-1531.30975154,0.00014267,2]
[399568056,1766500231887,-578.33656344,0.00014267,2]
[399568057,1766500231901,-1421.66343656,0.00014267,2]
[399568058,1766500231911,-322.6107,0.00014571,2]
[399568059,1766500231922,-655.72586344,0.00014571,2]
[399568060,1766500231934,-452.27413656,0.00014571,2]
[399568061,1766500231944,-578.20924308,0.0001458,2]
[399568062,1766500231955,-151.1,0.0001481,2]
[399568063,1766500231965,-151.85,0.00014845,2]
[399568064,1766500231975,-11920.13,0.00014886,2]
[399568065,1766500231985,-153.0,0.000149,2]
[399568066,1766500231995,-151.81,0.000149,2]
[399568067,1766500232006,-200.0,0.00014987,2]
[399568068,1766500232016,-688.56,0.0001516,2]
[399568069,1766500232027,-175.93,0.00015547,2]
[399568070,1766500232037,-168.0,0.00015559,2]
[399568071,1766500232046,-168.0,0.00015615,2]
[399568072,1766500232057,-168.0,0.00015642,2]
[399568073,1766500232067,-168.0,0.00015789,2]
[399568074,1766500232083,-2535.58319994,0.0001579,2]
[399568075,1766500232093,-594.2092946,0.0001579,2]
[399568076,1766500232105,-3272.82214048,0.0001579,2]
[399568077,1766500232115,-168.0,0.00015797,2]
[399568078,1766500232126,-151.0,0.00015848,2]
[399568079,1766500232137,-200.0,0.00015871,2]
[399568080,1766500232147,-200.0,0.00015872,2]
[399568081,1766500232158,-200.0,0.00015872,2]
[399568082,1766500232173,-574.12855637,0.00015881,2]
[399568083,1766500232184,-151.0,0.00015881,2]
[399568084,1766500232196,-500.0,0.00015881,2]
[399568085,1766500232208,-151.0,0.00015881,2]
[399568086,1766500232220,-500.0,0.00015881,2]
[399568087,1766500232233,-485.95940419,0.00015881,2]
[399568088,1766500232247,-14.04059581,0.00015881,2]
[399568089,1766500232260,-151.0,0.00015881,2]
[399568090,1766500232271,-500.0,0.00015881,2]
[399568091,1766500232282,-151.0,0.00015881,2]
[399568092,1766500232292,-500.0,0.00015881,2]
[399568093,1766500232303,-229.47731055,0.00015881,2]
[399568094,1766500232313,-617.86639973,0.00015881,2]
[399568095,1766500232323,-291.78774171,0.00015881,2]
[399568096,1766500237745,-151.0,0.00015847,2]
[399568097,1766500237756,-208.21225829,0.00015881,2]
[399568098,1766500237767,-140.78774171,0.00015881,2]
[399568099,1766500237862,-304.0,0.00015881,2]
[399568100,1766500237875,-55.21225829,0.00015881,2]
[399568101,1766500237886,-196.98776839,0.00015881,2]
[399568102,1766500237898,-303.01223161,0.00015881,2]
[399568103,1766500237909,-284.06609324,0.00015881,2]
[399568104,1766500237922,-215.93390676,0.00015881,2]
[399568105,1766500237932,-500.0,0.00015881,2]
[399568106,1766500237942,-500.0,0.00015881,2]
[399568107,1766500237952,-168.0,0.00015885,2]
[399568108,1766500237963,-783.93,0.00015889,2]
[399568109,1766500237973,-500.0,0.00015889,2]
[399568110,1766500237983,-500.0,0.00015889,2]
[399568111,1766500237993,-500.0,0.00015889,2]
[399568112,1766500238004,-500.0,0.00015889,2]
[399568113,1766500238015,-500.0,0.00015889,2]
[399568114,1766500238025,-500.0,0.00015889,2]
[399568115,1766500238036,-500.0,0.00015889,2]
[399568117,1766500238047,-500.0,0.00015889,2]
[399568119,1766500238058,-494.16777566,0.00015889,2]
[399568121,1766500238069,-500.0,0.00015889,2]
[399568123,1766500238080,-500.0,0.00015889,2]
[399568124,1766500238091,-500.0,0.00015889,2]
[399568125,1766500238101,-500.0,0.00015889,2]
[399568127,1766500238116,-500.0,0.00015889,2]
[399568129,1766500238126,-500.0,0.00015889,2]
[399568131,1766500238136,-500.0,0.00015889,2]
[399568133,1766500238146,-500.0,0.00015889,2]
[399568134,1766500238160,-500.0,0.00015889,2]
[399568135,1766500238171,-500.0,0.00015889,2]
[399568136,1766500238181,-1076.555,0.0001589,2]
[399568137,1766500238191,-158.435,0.0001589,2]
[399568138,1766500238203,-2904.22689978,0.0001589,2]
[399568139,1766500238216,-87.77310022,0.0001589,2]
[399568140,1766500238227,-28270.32927575,0.0001589,2]
[399568193,1766500240413,-500.0,0.0001589,2]
[399568194,1766500240431,-420.86114321,0.0001589,2]
[399568195,1766500240443,-3391.7295467,0.0001589,2]
[399568196,1766500240456,-922.18333418,0.0001589,2]
[399568197,1766500240490,-473.93335833,0.0001589,2]
[399568198,1766500240502,-8729.85355906,0.0001589,2]
[399568199,1766500240514,-2911.12206947,0.0001589,2]
[399568200,1766500240529,-731.83293838,0.0001589,2]
[399568201,1766500240541,-2067.6426025,0.0001589,2]
[399568202,1766500240552,-250.0,0.0001589,2]
[399568217,1766500242817,-17540.0,0.0001589,2]
[399568218,1766500242829,-393.39206397,0.0001589,2]
[399568219,1766500242842,-1797.61271401,0.0001589,2]
[399568220,1766500242986,-19478.27369987,0.0001589,2]
[399568221,1766500243047,-2584.11823244,0.0001589,2]
[399568222,1766500243060,-261.98000005,0.0001589,2]
[399568223,1766500243071,-688.7483796,0.0001589,2]
[399568224,1766500243082,-512.6900035,0.0001589,2]
[399568226,1766500245770,-205.35321334,0.000149,2]
[399568227,1766500245781,-407.49668264,0.0001589,2]
[399568228,1766500245794,-327.410967,0.0001589,2]
[399568229,1766500245806,-657.92929977,0.0001589,2]
[399568232,1766500245968,-379.12940536,0.0001589,2]
[399568233,1766500375178,442.1056348,0.000226,120]
[399568234,1766500768594,171.52,7.316e-05,2]
[399568235,1766501185190,189.0,0.000226,120]
[399568237,1766501386107,387.2765373,0.000226,120]
[399568238,1766501386394,5402.28,0.00022,30]
[399568244,1766501431849,-433.30281674,0.00013699,2]
[399568245,1766501431862,-115.41718326,0.00013699,2]
[399568246,1766501431872,-263.0,0.00013699,2]
[399568247,1766501431882,-200.0,0.00014066,2]
[399568248,1766501431892,-175.19,0.0001408,2]
[399568249,1766501431903,-28.37976011,0.00014084,2]
[399568250,1766501431915,-971.62023989,0.00014084,2]
[399568251,1766501431926,-166.66,0.00014294,2]
[399568252,1766501431937,-166.66,0.00014595,2]
[399568253,1766501431947,-150.0,0.00014615,2]
[399568254,1766501431956,-1200.0,0.00014685,2]
[399568255,1766501431966,-300.0,0.00014685,2]
[399568256,1766501431976,-285.44409083,0.00014685,2]
[399568257,1766501431988,-801.98263016,0.00014685,2]
[399568258,1766501432021,-112.57327901,0.00014685,2]
[399568259,1766501432032,-300.0,0.00014685,2]
[399568260,1766501432042,-428.48078099,0.00014686,2]
[399568261,1766501432057,-1231.20141571,0.00014686,2]
[399568262,1766501432070,-1398.05906453,0.00014686,2]
[399568263,1766501432082,-873.92050189,0.00014686,2]
[399568264,1766501432092,-327.9093175,0.00014686,2]
[399568265,1766501432108,-458.86841978,0.00014686,2]
[399568267,1766501432120,-1624.52235607,0.00014686,2]
[399568269,1766501432130,-381.94849773,0.00014686,2]
[399568272,1766501432140,-208.1850524,0.00014686,2]
[399568273,1766501432149,-1000.0,0.00014686,2]
[399568275,1766501432159,-1126.4982738,0.00014686,2]
[399568286,1766501432806,-2319.58557692,0.00014686,2]
[399568287,1766501432818,-799.21,0.00014686,2]
[399568288,1766501432830,-875.88927357,0.00014686,2]
[399568290,1766501438012,-500.0,0.00014685,2]
[399568291,1766501438023,-554.90753063,0.00014685,2]
[399568292,1766501438033,-1747.23730483,0.00014686,2]
[399568293,1766501438046,-759660.30972488,0.00014686,2]
[399568294,1766501438074,-100050.00207666,0.00014686,2]
[399568295,1766501438086,-585.97413046,0.00014686,2]
[399568296,1766501438104,-1312.20426437,0.00014686,2]
[399568297,1766501438118,-873.29,0.00014686,2]
[399568298,1766501438136,-1000.0,0.00014686,2]
[399568299,1766501438149,-4469.34245051,0.00014686,2]
[399568300,1766501438163,-125180.456924,0.00014686,2]
[399568301,1766501438174,-2500.0,0.00014686,2]
[399568302,1766501438185,-374.85212736,0.00014696,2]
[399568303,1766501438196,-207.4,0.00014777,2]
[399568304,1766501438207,-1074.28,0.00014785,2]
[399568305,1766501438218,-158.435,0.00014785,2]
[399568306,1766501438228,-500.0,0.00014785,2]
[399568307,1766501438240,-500.0,0.00014785,2]
[399568308,1766501438251,-500.0,0.00014785,2]
[399568309,1766501438262,-500.0,0.00014785,2]
[399568310,1766501438272,-150.0,0.00014785,2]
[399568311,1766501438283,-600.0,0.00014786,2]
[399568312,1766501438293,-166.66,0.00014896,2]
[399568313,1766501438306,-3931.66176311,0.00014932,2]
[399568315,1766501438317,-2411.30009326,0.00014932,2]
[399568317,1766501438327,-208.18505237,0.00015002,2]
[399568319,1766501438338,-374.85212732,0.00015063,2]
[399568321,1766501438350,-400.1,0.00015066,2]
[399568322,1766501438360,-250.0,0.00015068,2]
[399568323,1766501438371,-653.28,0.00015128,2]
[399568324,1766501438382,-322.6107,0.00015128,2]
[399568325,1766501438392,-151.0,0.00015128,2]
[399568326,1766501438403,-500.0,0.00015128,2]
[399568327,1766501438413,-500.0,0.00015128,2]
[399568329,1766501438424,-379.13559726,0.00015128,2]
[399568330,1766501438434,-500.0,0.00015128,2]
[399568331,1766501438449,-500.0,0.00015128,2]
[399568332,1766501438459,-500.0,0.00015128,2]
[399568333,1766501438470,-500.0,0.00015128,2]
[399568334,1766501438480,-500.0,0.00015128,2]
[399568335,1766501438491,-500.0,0.00015128,2]
[399568336,1766501438501,-616.826593,0.00015128,2]
[399568337,1766501438511,-574.12855637,0.00015128,2]
[399568338,1766501438522,-151.0,0.00015128,2]
[399568339,1766501438533,-250.0,0.00015128,2]
[399568340,1766501438544,-250.0,0.00015128,2]
[399568341,1766501438557,-1108.0,0.00015128,2]
[399568342,1766501438568,-250.0,0.00015128,2]
[399568343,1766501438581,-250.0,0.00015128,2]
[399568344,1766501438592,-250.0,0.00015128,2]
[399568345,1766501438603,-250.0,0.00015128,2]
[399568346,1766501438614,-250.0,0.00015128,2]
[399568347,1766501438626,-250.0,0.00015128,2]
[399568348,1766501438637,-250.0,0.00015128,2]
[399568349,1766501438650,-250.0,0.00015128,2]
[399568350,1766501438661,-620.0,0.00015128,2]
[399568351,1766501438672,-250.0,0.00015128,2]
[399568352,1766501438682,-250.0,0.00015128,2]
[399568353,1766501438693,-250.0,0.00015128,2]
[399568354,1766501438704,-250.0,0.00015128,2]
[399568355,1766501438715,-250.0,0.00015128,2]
[399568356,1766501438725,-250.0,0.00015128,2]
[399568357,1766501438736,-250.0,0.00015128,2]
[399568358,1766501438747,-250.0,0.00015128,2]
[399568359,1766501438757,-250.0,0.00015128,2]
[399568360,1766501438768,-250.0,0.00015128,2]
[399568361,1766501438778,-250.0,0.00015128,2]
[399568362,1766501438788,-250.0,0.00015128,2]
[399568363,1766501438798,-276.19490362,0.00015128,2]
[399568364,1766501438814,-250.0,0.00015128,2]
[399568365,1766501438824,-250.0,0.00015128,2]
[399568366,1766501438834,-250.0,0.00015128,2]
[399568367,1766501438844,-250.0,0.00015128,2]
[399568368,1766501438854,-250.0,0.00015128,2]
[399568369,1766501438864,-250.0,0.00015128,2]
[399568370,1766501438875,-200.0,0.00015128,2]
[399568371,1766501438885,-207.4,0.00015128,2]
[399568372,1766501438896,-215.0738,0.00015128,2]
[399568373,1766501438907,-223.0315306,0.00015128,2]
[399568374,1766501438917,-231.28369723,0.00015128,2]
[399568375,1766501438927,-239.84119403,0.00015128,2]
[399568376,1766501438938,-248.71531821,0.00015128,2]
[399568377,1766501438948,-257.91778498,0.00015128,2]
[399568378,1766501438958,-267.46074303,0.00015128,2]
[399568379,1766501438969,-277.35679052,0.00015128,2]
[399568380,1766501438979,-3931.66176311,0.00015178,2]
[399568381,1766501438989,-2411.30009326,0.00015178,2]
[399568382,1766501439002,-166.66,0.00015197,2]
[399568383,1766501439012,-381.94849771,0.00015293,2]
[399568384,1766501439022,-208.18505237,0.00015319,2]
[399568385,1766501439034,-600.0,0.00015334,2]
[399568386,1766501439044,-448.31360974,0.00015388,2]
[399568387,1766501439055,-653.28,0.00015402,2]
[399568388,1766501439066,-3931.66176311,0.00015424,2]
[399568389,1766501439076,-2411.30009326,0.00015424,2]
[399568390,1766501439086,-374.85212732,0.00015431,2]
[399568391,1766501439097,-166.66,0.00015498,2]
[399568392,1766501439107,-1626.0,0.00015507,2]
[399568393,1766501439118,-1626.0,0.00015575,2]
[399568394,1766501439128,-150.0,0.00015616,2]
[399568395,1766501439139,-208.18505237,0.00015635,2]
[399568396,1766501439149,-3931.66176311,0.0001567,2]
[399568397,1766501439159,-2411.30009326,0.0001567,2]
[399568398,1766501439169,-653.28,0.00015676,2]
[399568399,1766501439180,-595.37131296,0.00015676,2]
[399568400,1766501439190,-2040.98173443,0.0001568,2]
[399568401,1766501439199,-1626.0,0.00015723,2]
[399568402,1766501439209,-1422.0,0.00015723,2]
[399568403,1766501439219,-1626.0,0.00015744,2]
[399568404,1766501439230,-1626.0,0.00015774,2]
[399568405,1766501439240,-177.11753301,0.00015783,2]
[399568406,1766501439251,-500.0,0.00015783,2]
[399568407,1766501439262,-500.0,0.00015783,2]
[399568408,1766501439272,-500.1214449,0.00015783,2]
[399568409,1766501439282,-500.0,0.00015783,2]
[399568410,1766501439292,-500.0,0.00015783,2]
[399568411,1766501439303,-500.0,0.00015783,2]
[399568412,1766501439312,-500.0,0.00015783,2]
[399568413,1766501439322,-201.7413727,0.00015783,2]
[399568414,1766501439332,-500.23725067,0.00015783,2]
[399568415,1766501439342,-500.0,0.00015783,2]
[399568416,1766501439352,-500.0,0.00015783,2]
[399568417,1766501439363,-165.59889929,0.00015783,2]
[399568418,1766501439374,-500.57373942,0.00015783,2]
[399568419,1766501439397,-500.0,0.00015783,2]
[399568420,1766501439408,-500.0,0.00015783,2]
[399568421,1766501439418,-500.08130902,0.00015783,2]
[399568422,1766501439428,-500.52659866,0.00015783,2]
[399568423,1766501439439,-500.0,0.00015783,2]
[399568424,1766501439450,-500.0,0.00015783,2]
[399568425,1766501439460,-165.51567643,0.00015783,2]
[399568426,1766501439471,-165.37952363,0.00015783,2]
[399568427,1766501439481,-500.82264109,0.00015783,2]
[399568428,1766501439491,-500.2502142,0.00015783,2]
[399568429,1766501439502,-1626.0,0.00015785,2]
[399568430,1766501439512,-374.85212732,0.00015798,2]